bitfinex-derivatives/quotes_SOLF0:USTF0_20250528
["timestamp","ask_amount","ask_price","bid_price","bid_amount"]
[1748423187439,5.7483,173.88,173.86,34.08788906]
[1748423187633,0.03665121,173.9,173.86,28.33908906]
[1748423188137,5.7485,173.88,173.86,28.33908906]
[1748423189742,5.7486,173.87,173.86,28.33908906]
[1748423192239,5.7486,173.87,173.86,0.03908906]
[1748423197043,5.7484,173.88,173.86,0.03908906]
[1748423199947,5.7486,173.87,173.86,0.03908906]
[1748423200148,0.03665121,173.9,173.86,0.03908906]
[1748423200851,5.7484,173.88,173.86,0.03908906]
[1748423201650,5.7486,173.87,173.86,0.03908906]
[1748423205059,0.03665121,173.9,173.86,0.03908906]
[1748423205950,5.7486,173.87,173.86,0.03908906]
[1748423209559,5.7483,173.88,173.86,0.03908906]
[1748423210053,0.03665121,173.9,173.86,0.03908906]
[1748423211660,5.7484,173.88,173.86,0.03908906]
[1748423212359,5.7486,173.87,173.86,0.03908906]
[1748423214650,5.7484,173.88,173.86,0.03908906]
[1748423215364,5.7484,173.88,173.86,5.78788906]
[1748423217760,5.7484,173.88,173.86,0.03908906]
[1748423218059,5.748,173.89,173.86,0.03908906]
[1748423218956,5.748,173.89,173.87,5.7483]
[1748423220063,5.748,173.89,173.86,0.03908906]
[1748423220064,5.7483,173.88,173.86,5.78788906]
[1748423220661,5.7483,173.88,173.86,0.03908906]
[1748423223666,5.7486,173.87,173.86,0.03908906]
[1748423227667,10.03297723,173.87,173.86,8.906e-05]
[1748423229370,38.33297723,173.87,173.78,28.3]
[1748423229571,4.28437723,173.83,173.78,28.3]
[1748423229970,34.0486,173.87,173.78,28.3]
[1748423229971,5.7512,173.79,173.78,28.3]
[1748423232964,5.7515,173.78,173.77,0.0441194]
[1748423233775,5.7515,173.78,173.77,1.94e-05]
[1748423251980,10.04227974,173.78,173.77,1.94e-05]
[1748423255881,5.7515,173.78,173.77,1.94e-05]
[1748423256179,10.04227974,173.78,173.77,1.94e-05]
[1748423259080,5.7515,173.78,173.77,1.94e-05]
[1748423265186,10.04227974,173.78,173.77,1.94e-05]
[1748423269097,5.7539,173.71,173.7,28.3]
[1748423282504,5.7542,173.7,173.69,1.98849562]
[1748423286606,5.754,173.71,173.69,1.98849562]
[1748423286809,0.0408718,173.72,173.69,1.98849562]
[1748423287104,0.0408718,173.72,173.69,7.74279562]
[1748423287406,5.7945718,173.72,173.69,7.74279562]
[1748423288004,0.0408718,173.72,173.7,5.754]
[1748423288210,5.7532,173.74,173.71,28.3]
[1748423288504,4.29077974,173.78,173.71,32.59077974]
[1748423288707,4.29077974,173.8,173.74,5.7528]
[1748423288903,4.29077974,173.8,173.73,4.29077974]
[1748423289100,0.03962902,173.78,173.76,5.7521]
[1748423289709,0.03962902,173.78,173.75,34.09465892]
[1748423290105,5.7521,173.77,173.75,28.34225892]
[1748423290507,0.03962902,173.78,173.75,28.34225892]
[1748423291711,5.7522,173.76,173.75,28.34225892]
[1748423291908,5.7522,173.76,173.75,0.04225892]
[1748423301816,5.7522,173.76,173.75,5.892e-05]
[1748423320536,5.7542,173.7,173.69,28.3]
[1748423326041,5.79208644,173.71,173.69,28.3]
[1748423326336,0.03808644,173.71,173.68,0.04270882]
[1748423326738,5.7545,173.69,173.68,0.04270882]
[1748423332349,0.03808644,173.71,173.68,0.04270882]
[1748423332350,5.7542,173.7,173.68,0.04270882]
[1748423334146,5.7545,173.69,173.68,0.04270882]
[1748423335751,5.7543,173.7,173.68,0.04270882]
[1748423336052,0.03808644,173.71,173.68,0.04270882]
[1748423336953,5.7545,173.69,173.68,0.04270882]
[1748423337150,0.03808644,173.71,173.68,0.04270882]
[1748423337551,5.7543,173.7,173.68,0.04270882]
[1748423337751,0.03808644,173.71,173.68,0.04270882]
[1748423339052,5.7545,173.69,173.68,0.04270882]
[1748423339957,5.7543,173.7,173.68,0.04270882]
[1748423340459,5.7543,173.7,173.68,5.79740882]
[1748423340959,5.7545,173.69,173.68,0.04270882]
[1748423341552,5.7543,173.7,173.68,0.04270882]
[1748423342049,5.7543,173.7,173.68,5.79750882]
[1748423343058,5.7543,173.7,173.68,0.04270882]
[1748423343363,5.7545,173.69,173.68,0.04270882]
[1748423357373,0.03808644,173.71,173.68,0.04270882]
[1748423358874,5.7545,173.69,173.68,0.04270882]
[1748423379587,5.7542,173.7,173.68,0.04270882]
[1748423380582,5.7542,173.7,173.68,5.79730882]
[1748423381975,0.03808644,173.71,173.68,5.79730882]
[1748423381976,5.7545,173.69,173.68,0.04270882]
[1748423382173,0.03808644,173.71,173.68,0.04270882]
[1748423383385,5.7544,173.7,173.68,5.79750882]
[1748423383884,0.03808644,173.71,173.68,0.04270882]
[1748423384187,5.7545,173.69,173.68,0.04270882]
[1748423390997,5.7545,173.69,173.68,28.34270882]
[1748423393398,5.7543,173.7,173.68,34.09750882]
[1748423395002,5.79198644,173.71,173.69,5.7543]
[1748423395202,0.03808644,173.71,173.69,4.29242086]
[1748423395603,0.03808644,173.71,173.7,5.7542]
[1748423397605,5.79198644,173.71,173.69,10.04682086]
[1748423399910,0.03808644,173.71,173.69,10.04682086]
[1748423400812,5.79198644,173.71,173.69,4.29242086]
[1748423401009,0.03808644,173.71,173.69,4.29242086]
[1748423401209,5.7542,173.7,173.69,4.29242086]
[1748423401698,0.03808644,173.71,173.68,32.63512968]
[1748423402109,5.7542,173.7,173.68,32.63512968]
[1748423402303,0.03808644,173.71,173.68,28.34270882]
[1748423403413,5.7545,173.69,173.68,28.34270882]
[1748423404809,0.03808644,173.71,173.68,28.34270882]
[1748423404810,5.7544,173.7,173.68,28.34270882]
[1748423405112,0.03808644,173.71,173.68,28.34270882]
[1748423405913,5.79198644,173.71,173.69,5.7545]
[1748423406713,5.7542,173.7,173.68,34.09750882]
[1748423406913,0.03808644,173.71,173.68,28.34270882]
[1748423407314,5.79208644,173.71,173.69,5.7544]
[1748423409411,5.79208644,173.71,173.68,28.34270882]
[1748423411014,5.79208644,173.71,173.69,5.7545]
[1748423411717,0.03808644,173.71,173.68,34.09730882]
[1748423412608,0.03808644,173.71,173.68,28.34270882]
[1748423412813,5.79208644,173.71,173.69,5.7545]
[1748423413611,4.29242086,173.78,173.69,4.29242086]
[1748423413812,28.3,173.8,173.73,4.29242086]
[1748423414016,5.7523,173.76,173.73,10.04542086]
[1748423414217,5.7523,173.76,173.73,4.29242086]
[1748423414613,5.7523,173.76,173.73,4.32978441]
[1748423414816,5.79384834,173.76,173.73,4.32978441]
[1748423415918,0.04154834,173.76,173.73,4.32978441]
[1748423416918,0.04154834,173.76,173.75,10.04492086]
[1748423419718,0.04154834,173.76,173.75,4.29242086]
[1748423421922,0.04154834,173.76,173.75,10.04492086]
[1748423429632,0.04154834,173.76,173.75,4.29242086]
[1748423430431,0.04154834,173.76,173.75,10.04492086]
[1748423434338,5.751,173.8,173.77,5.7516]
[1748423434534,5.751,173.8,173.77,38.32402086]
[1748423435439,5.79357187,173.8,173.77,38.36471362]
[1748423437935,0.04257187,173.8,173.79,4.29242086]
[1748423439040,0.04257187,173.8,173.79,10.04362086]
[1748423449446,4.33499273,173.8,173.72,28.26]
[1748423449651,4.29242086,173.78,173.72,28.26]
[1748423449848,5.7536,173.72,173.7,4.29242086]
[1748423450052,4.29242086,173.77,173.7,4.29242086]
[1748423450352,5.7538,173.72,173.7,4.29242086]
[1748423451948,5.7538,173.72,173.69,28.30000941]
[1748423452952,5.79516343,173.73,173.69,28.30000941]
[1748423456054,5.79516343,173.73,173.69,34.05450941]
[1748423461065,5.7535,173.72,173.69,34.05450941]
[1748423461361,0.04186343,173.73,173.69,28.30000941]
[1748423461753,5.7542,173.7,173.69,28.30000941]
[1748423464365,0.04186343,173.73,173.69,28.30000941]
[1748423464765,5.79526343,173.73,173.69,34.05430941]
[1748423465571,0.04186343,173.73,173.69,28.30000941]
[1748423467971,5.7542,173.7,173.69,28.30000941]
[1748423469769,5.7542,173.7,173.69,0.04000941]
[1748423469975,4.0056,173.72,173.62,29.66]
[1748423470173,6.70569614,173.71,173.62,29.66]
[1748423470474,5.7562,173.64,173.62,29.66]
[1748423470677,6.70569614,173.71,173.62,29.66]
[1748423470866,6.70569614,173.71,173.65,0.03848741]
[1748423470867,5.7557,173.66,173.65,0.03848741]
[1748423480573,5.7565,173.63,173.62,29.66]
[1748423480776,6.70569614,173.71,173.59,31.6112]
[1748423480977,29.68,173.68,173.59,31.6112]
[1748423481175,5.7571,173.62,173.59,37.3688]
[1748423481574,5.79493144,173.62,173.59,37.40904873]
[1748423482182,5.7572,173.61,173.59,35.47784873]
[1748423483384,5.7572,173.61,173.59,29.72024873]
[1748423483685,0.03783144,173.62,173.59,29.72024873]
[1748423483686,5.79473144,173.62,173.59,29.72024873]
[1748423483983,5.79473144,173.62,173.6,5.7575]
[1748423484484,5.79473144,173.62,173.59,35.47794873]
[1748423487488,0.03783144,173.62,173.6,5.7575]
[1748423487890,0.03783144,173.62,173.59,29.72024873]
[1748423488092,5.79473144,173.62,173.59,35.47794873]
[1748423491791,0.03783144,173.62,173.6,5.7573]
[1748423492792,5.79463144,173.62,173.6,5.7573]
[1748423493285,0.03783144,173.62,173.6,5.7573]
[1748423493682,0.03783144,173.62,173.59,35.47774873]
[1748423494185,0.03783144,173.62,173.59,29.72024873]
[1748423494794,0.03783144,173.62,173.6,5.7573]
[1748423495889,5.79473144,173.62,173.59,35.47794873]
[1748423496089,0.03783144,173.62,173.59,29.72024873]
[1748423496989,0.03783144,173.62,173.6,5.7572]
[1748423497495,0.03783144,173.62,173.61,5.7572]
[1748423499990,5.7553,173.67,173.64,5.7561]
[1748423500990,5.79794179,173.67,173.64,5.79434525]
[1748423502193,0.04264179,173.67,173.65,5.7558]
[1748423504098,0.04264179,173.67,173.66,5.7555]
[1748423504400,0.04264179,173.67,173.64,0.03824525]
[1748423504598,0.04264179,173.67,173.65,5.7556]
[1748423504898,0.04264179,173.67,173.64,0.03824525]
[1748423505100,0.04264179,173.67,173.64,1.99084525]
[1748423506300,0.04264179,173.67,173.65,5.7558]
[1748423506895,0.04264179,173.67,173.66,5.7555]
[1748423508895,0.04264179,173.67,173.65,5.7557]
[1748423509501,0.04264179,173.67,173.64,1.99084525]
[1748423509697,0.04264179,173.67,173.64,0.03824525]
[1748423509903,5.7558,173.65,173.64,0.03824525]
[1748423518515,5.7558,173.66,173.64,0.03824525]
[1748423518917,0.04264179,173.67,173.64,0.03824525]
[1748423519417,0.04264179,173.67,173.65,5.7556]
[1748423520312,0.04264179,173.67,173.66,5.7555]
[1748423520513,0.04264179,173.67,173.66,35.8155]
[1748423520914,0.04264179,173.67,173.66,30.06]
[1748423521317,0.04264179,173.67,173.66,35.8155]
[1748423524621,0.04264179,173.67,173.66,30.06]
[1748423525517,5.79784179,173.67,173.66,30.06]
[1748423526117,0.04264179,173.67,173.66,30.06]
[1748423526721,5.79784179,173.67,173.66,30.06]
[1748423529927,5.7556,173.66,173.64,5.79424525]
[1748423530120,0.04264179,173.67,173.64,0.03824525]
[1748423530626,5.7558,173.65,173.64,0.03824525]
[1748423591879,5.7556,173.66,173.64,0.03824525]
[1748423592582,5.7556,173.66,173.64,28.95824525]
[1748423593378,5.7556,173.66,173.64,34.71444525]
[1748423593883,5.79784179,173.67,173.64,28.95824525]
[1748423594184,5.79784179,173.67,173.64,30.89154525]
[1748423594981,5.79784179,173.67,173.64,36.64754525]
[1748423595182,0.04264179,173.67,173.65,4.29616978]
[1748423595683,0.04264179,173.67,173.65,10.05196978]
[1748423595880,5.79784179,173.67,173.65,10.05196978]
[1748423596585,5.79784179,173.67,173.65,4.29616978]
[1748423598079,5.7555,173.66,173.65,4.29616978]
[1748423600988,5.7555,173.66,173.64,30.89154525]
[1748423601280,5.7558,173.65,173.64,28.95824525]
[1748423601486,5.7558,173.65,173.64,0.03824525]
[1748423602887,5.7556,173.66,173.64,0.03824525]
[1748423603677,5.7558,173.65,173.64,0.03824525]
[1748423604987,0.04264179,173.67,173.64,0.03824525]
[1748423605691,5.7557,173.66,173.64,0.03824525]
[1748423608984,5.7555,173.66,173.64,0.03824525]
[1748423614190,5.79794179,173.67,173.64,5.79414525]
[1748423614682,5.7556,173.66,173.64,0.03824525]
[1748423615291,5.79794179,173.67,173.64,0.03824525]
[1748423615987,5.79794179,173.67,173.64,5.79424525]
[1748423616385,5.79794179,173.67,173.64,0.03824525]
[1748423616590,0.04264179,173.67,173.64,0.03824525]
[1748423616785,0.04264179,173.67,173.65,5.7558]
[1748423618384,0.04264179,173.67,173.66,5.7555]
[1748423619692,0.04264179,173.67,173.66,10.05166978]
[1748423620088,0.04264179,173.67,173.65,28.9]
[1748423620291,0.04264179,173.67,173.65,33.19616978]
[1748423620692,5.7555,173.66,173.65,33.19616978]
[1748423622097,5.7555,173.66,173.65,28.9]
[1748423626499,5.79794179,173.67,173.65,28.9]
[1748423627291,5.7555,173.66,173.65,28.9]
[1748423639210,0.04264179,173.67,173.65,28.9]
[1748423639403,5.79794179,173.67,173.65,28.9]
[1748423639813,5.7555,173.66,173.65,28.9]
[1748423640603,5.79794179,173.67,173.65,28.9]
[1748423640811,0.04264179,173.67,173.64,0.03824525]
[1748423641110,5.7558,173.65,173.64,0.03824525]
[1748423645615,5.7573,173.61,173.59,4.29616978]
[1748423646018,4.29616978,173.63,173.58,28.68]
[1748423646512,5.7578,173.59,173.58,28.68]
[1748423646818,0.03766432,173.6,173.58,28.68]
[1748423647011,5.79546432,173.6,173.58,28.68]
[1748423647224,5.79546432,173.6,173.57,10.09128955]
[1748423647622,0.03766432,173.6,173.57,10.09128955]
[1748423647927,5.79516432,173.6,173.57,10.09128955]
[1748423648123,5.79516432,173.6,173.57,4.33278955]
[1748423648922,5.79516432,173.6,173.57,10.09108955]
[1748423650222,5.7579,173.59,173.57,10.09108955]
[1748423650423,0.03766432,173.6,173.57,10.09108955]
[1748423650920,5.79536432,173.6,173.57,10.09108955]
[1748423651722,5.7579,173.59,173.57,0.03661977]
[1748423652222,5.7581,173.58,173.57,0.03661977]
[1748423652426,0.03766432,173.6,173.57,0.03661977]
[1748423652812,5.7581,173.58,173.57,0.03661977]
[1748423663140,0.03766432,173.6,173.57,0.03661977]
[1748423663430,0.03766432,173.6,173.57,4.33278955]
[1748423663626,5.79536432,173.6,173.57,10.09108955]
[1748423663824,0.03766432,173.6,173.57,5.79491977]
[1748423664026,0.03766432,173.6,173.57,0.03661977]
[1748423664320,5.7582,173.58,173.57,0.03661977]
[1748423671230,0.03766432,173.6,173.57,0.03661977]
[1748423671430,0.03766432,173.6,173.59,5.7578]
[1748423672335,0.03766432,173.6,173.57,0.03661977]
[1748423672834,5.79536432,173.6,173.57,5.79481977]
[1748423674038,5.7578,173.59,173.57,0.03661977]
[1748423674239,0.03766432,173.6,173.57,0.03661977]
[1748423674737,5.7578,173.59,173.57,5.79481977]
[1748423674933,5.7578,173.59,173.57,0.03661977]
[1748423675831,5.7582,173.58,173.57,0.03661977]
[1748423686047,10.05436978,173.58,173.57,0.03661977]
[1748423686246,10.05436978,173.58,173.49,28.58]
[1748423686247,4.29616978,173.58,173.49,28.58]
[1748423686542,4.29616978,173.56,173.49,32.87616978]
[1748423686943,5.76,173.53,173.49,32.87616978]
[1748423687135,5.76,173.53,173.49,32.91832962]
[1748423687340,5.76,173.53,173.5,5.7608]
[1748423687341,5.80013866,173.53,173.5,5.7608]
[1748423688549,5.80013866,173.53,173.49,38.67932962]
[1748423688843,0.04013866,173.53,173.49,32.91832962]
[1748423689044,0.04013866,173.53,173.5,5.7607]
[1748423689837,0.04013866,173.53,173.51,5.7604]
[1748423690238,0.04013866,173.53,173.52,5.7601]
[1748423690441,0.04013866,173.53,173.52,10.05626978]
[1748423692548,0.04013866,173.53,173.52,5.7601]
[1748423698960,28.56,173.61,173.51,4.29616978]
[1748423699249,28.56,173.61,173.5,1.9212]
[1748423699250,28.56,173.61,173.55,4.29616978]
[1748423699756,28.56,173.61,173.57,5.7583]
[1748423700057,0.03760127,173.61,173.59,5.7576]
[1748423700355,0.03760127,173.61,173.57,0.04251339]
[1748423700356,0.03760127,173.61,173.58,4.29616978]
[1748423701451,0.03760127,173.61,173.58,32.87616978]
[1748423701656,0.03760127,173.61,173.6,4.29616978]
[1748423701953,2.0538,173.68,173.58,35.29089843]
[1748423702346,5.7567,173.63,173.59,5.7577]
[1748423702547,1.8959,173.67,173.58,28.58]
[1748423702754,0.04077666,173.64,173.61,0.04193821]
[1748423702953,5.7568,173.62,173.61,0.04193821]
[1748423714161,5.7566,173.63,173.61,0.04193821]
[1748423714560,5.79707666,173.64,173.61,5.79893821]
[1748423716653,0.04077666,173.64,173.62,5.7567]
[1748423717267,0.04077666,173.64,173.61,0.04193821]
[1748423717268,5.79697666,173.64,173.61,5.79893821]
[1748423717465,0.04077666,173.64,173.61,0.04193821]
[1748423718062,5.7568,173.63,173.61,0.04193821]
[1748423719161,5.7568,173.62,173.61,0.04193821]
[1748423719465,0.04077666,173.64,173.61,0.04193821]
[1748423719865,5.7568,173.63,173.61,0.04193821]
[1748423722368,0.04077666,173.64,173.61,0.04193821]
[1748423723269,5.7568,173.62,173.61,0.04193821]
[1748423726268,5.7566,173.63,173.61,0.04193821]
[1748423728967,5.79707666,173.64,173.61,5.79903821]
[1748423729373,0.04077666,173.64,173.61,0.04193821]
[1748423730674,5.7565,173.63,173.61,0.04193821]
[1748423731470,5.79697666,173.64,173.61,5.79883821]
[1748423731669,0.04077666,173.64,173.62,4.29555867]
[1748423733274,5.79697666,173.64,173.62,4.29555867]
[1748423733777,5.7565,173.63,173.62,4.29555867]
[1748423736170,5.79697666,173.64,173.62,4.29555867]
[1748423736571,0.04077666,173.64,173.62,4.29555867]
[1748423737877,0.04077666,173.64,173.63,34.4765]
[1748423738472,0.04077666,173.64,173.63,38.77205867]
[1748423741581,4.29555867,173.71,173.66,5.7554]
[1748423741774,4.29555867,173.71,173.66,10.05095867]
[1748423742300,32.6453,173.72,173.65,5.7557]
[1748423742470,36.94085867,173.72,173.65,10.05125867]
[1748423742669,36.94085867,173.72,173.67,0.04218656]
[1748423742670,0.0371458,173.7,173.67,0.04218656]
[1748423742873,5.755,173.68,173.67,0.04218656]
[1748423744281,0.0371458,173.7,173.67,0.04218656]
[1748423744282,5.7546,173.69,173.67,0.04218656]
[1748423745482,5.7548,173.68,173.67,0.04218656]
[1748423755693,11.5104,173.67,173.47,52.24095238]
[1748423755891,4.29555867,173.61,173.53,4.29555867]
[1748423756089,4.29555867,173.6,173.53,4.29555867]
[1748423756290,5.7584,173.58,173.53,38.61525867]
[1748423756594,4.29555867,173.6,173.53,38.61525867]
[1748423756795,5.7587,173.57,173.55,0.03787303]
[1748423757389,5.7588,173.56,173.55,0.03787303]
[1748423769001,0.03826129,173.58,173.5,28.58]
[1748423769002,5.7605,173.51,173.5,28.58]
[1748423770609,5.7608,173.5,173.49,0.04394931]
[1748423772311,5.7605,173.51,173.49,0.04394931]
[1748423772611,0.03824803,173.52,173.49,0.04394931]
[1748423773008,5.7607,173.51,173.49,0.04394931]
[1748423773307,0.03824803,173.52,173.49,0.04394931]
[1748423773714,5.7608,173.5,173.49,0.04394931]
[1748423774411,0.03824803,173.52,173.49,0.04394931]
[1748423774619,0.03824803,173.52,173.5,5.7608]
[1748423775007,0.03824803,173.52,173.49,0.04394931]
[1748423776114,5.7607,173.51,173.49,0.04394931]
[1748423776511,0.03824803,173.52,173.49,0.04394931]
[1748423776706,5.7605,173.51,173.49,0.04394931]
[1748423777113,0.03824803,173.52,173.49,0.04394931]
[1748423778015,5.7605,173.51,173.49,0.04394931]
[1748423778318,0.03824803,173.52,173.49,0.04394931]
[1748423778516,5.7608,173.5,173.49,0.04394931]
[1748423786420,5.7606,173.51,173.49,0.04394931]
[1748423786628,0.03824803,173.52,173.49,0.04394931]
[1748423786823,0.03824803,173.52,173.49,5.80484931]
[1748423787320,5.79864803,173.52,173.49,5.80484931]
[1748423787629,0.03824803,173.52,173.49,0.04394931]
[1748423788828,5.79864803,173.52,173.49,0.04394931]
[1748423789027,0.03824803,173.52,173.49,0.04394931]
[1748423789930,5.7608,173.5,173.49,0.04394931]
[1748423793437,10.06262938,173.5,173.49,0.04394931]
[1748423793631,4.30182938,173.5,173.41,28.6]
[1748423793824,4.30182938,173.47,173.41,28.6]
[1748423794227,5.7632,173.43,173.41,28.6]
[1748423794427,4.30182938,173.45,173.41,28.6]
[1748423794635,5.7635,173.42,173.41,28.64325344]
[1748423794839,5.7635,173.42,173.41,0.04325344]
[1748423796337,5.7641,173.4,173.39,4.6085623]
[1748423798235,0.03932169,173.41,173.39,4.6085623]
[1748423799238,5.7641,173.4,173.39,4.6085623]
[1748423813647,0.03932169,173.41,173.39,4.6085623]
[1748423814238,5.7641,173.4,173.39,4.6085623]
[1748423819042,5.7641,173.4,173.39,6.23e-05]
[1748423819345,5.766,173.35,173.33,4.0504]
[1748423821155,5.7661,173.34,173.33,4.0504]
[1748423821649,0.03650388,173.36,173.33,4.0504]
[1748423821850,0.03650388,173.36,173.33,2.0327]
[1748423822452,5.7661,173.34,173.33,2.0327]
[1748423823154,5.7664,173.33,173.32,0.04190125]
[1748423824246,0.03650388,173.36,173.27,1.8872]
[1748423824750,5.7674,173.3,173.27,7.6554]
[1748423824942,35.58972587,173.37,173.27,1.8872]
[1748423825344,5.80399401,173.34,173.3,0.0366738]
[1748423825544,0.03789401,173.34,173.3,0.0366738]
[1748423825954,5.7664,173.33,173.3,0.0366738]
[1748423826148,0.03789401,173.34,173.3,0.0366738]
[1748423826553,5.7665,173.33,173.3,0.0366738]
[1748423826952,5.80419401,173.34,173.3,0.0366738]
[1748423827151,0.03789401,173.34,173.3,0.0366738]
[1748423827351,0.03789401,173.34,173.3,28.8966738]
[1748423827657,0.03789401,173.34,173.33,5.7664]
[1748423833254,28.86,173.41,173.37,5.765]
[1748423833456,28.86,173.44,173.37,5.765]
[1748423833651,28.86,173.44,173.34,28.86]
[1748423833861,6.078,173.47,173.39,5.7641]
[1748423833862,39.71322587,173.47,173.39,5.7641]
[1748423834056,32.9835,173.47,173.38,28.86]
[1748423834362,0.03974966,173.44,173.41,0.04032023]
[1748423834752,5.80254966,173.44,173.41,0.04032023]
[1748423835157,0.03974966,173.44,173.41,0.04032023]
[1748423835360,0.03974966,173.44,173.42,5.7633]
[1748423836055,0.03974966,173.44,173.43,5.7631]
[1748423838767,0.03974966,173.44,173.42,36.6566]
[1748423839062,0.03974966,173.44,173.42,30.8933]
[1748423839465,0.03974966,173.44,173.43,5.7631]
[1748423840862,30.933,173.52,173.44,5.7627]
[1748423841757,0.04334482,173.5,173.46,0.03809176]
[1748423841959,5.7617,173.48,173.46,0.03809176]
[1748423842961,5.7618,173.47,173.46,0.03809176]
[1748423848166,5.7612,173.49,173.46,0.03809176]
[1748423848869,5.7615,173.48,173.46,0.03809176]
[1748423849061,0.04334482,173.5,173.46,0.03809176]
[1748423849265,5.7613,173.49,173.46,5.80019176]
[1748423849969,5.7616,173.48,173.46,0.03809176]
[1748423851268,5.7618,173.47,173.46,0.03809176]
[1748423851570,0.04334482,173.5,173.46,0.03809176]
[1748423852071,5.7612,173.49,173.46,0.03809176]
[1748423853078,5.7615,173.48,173.46,0.03809176]
[1748423854684,0.04334482,173.5,173.46,0.03809176]
[1748423855182,5.7612,173.49,173.46,0.03809176]
[1748423855588,5.7612,173.49,173.46,29.01809176]
[1748423856286,5.7612,173.49,173.46,34.77999176]
[1748423858789,0.04334482,173.5,173.47,5.7618]
[1748423859093,0.04334482,173.5,173.46,29.01809176]
[1748423860993,0.04334482,173.5,173.49,5.7611]
[1748423861383,28.98,173.57,173.47,4.1339]
[1748423861585,5.7594,173.54,173.5,5.7606]
[1748423861791,5.7594,173.54,173.5,28.98]
[1748423862090,35.70972587,173.6,173.5,28.98]
[1748423862386,0.03889593,173.57,173.53,0.04229408]
[1748423862978,5.7593,173.55,173.53,0.04229408]
[1748423863391,5.7591,173.55,173.53,0.04229408]
[1748423863993,5.7594,173.54,173.53,0.04229408]
[1748423864291,0.03889593,173.57,173.53,0.04229408]
[1748423864689,5.759,173.56,173.53,5.80199408]
[1748423865488,5.759,173.56,173.53,0.04229408]
[1748423865989,5.759,173.56,173.53,5.80199408]
[1748423867095,5.79749593,173.57,173.53,5.80199408]
[1748423867696,5.7588,173.56,173.53,5.80199408]
[1748423868897,5.79749593,173.57,173.54,34.5794]
[1748423869596,5.7588,173.56,173.54,28.82]
[1748423872997,5.79749593,173.57,173.54,34.5794]
[1748423873297,5.79749593,173.57,173.54,28.82]
[1748423874189,5.79749593,173.57,173.54,34.5794]
[1748423874697,5.7588,173.56,173.54,28.82]
[1748423875195,0.03889593,173.57,173.54,28.82]
[1748423875599,5.79759593,173.57,173.54,28.82]
[1748423875788,5.79759593,173.57,173.54,34.5794]
[1748423880507,5.7588,173.56,173.54,28.82]
[1748423881611,5.79749593,173.57,173.54,28.82]
[1748423883409,5.79749593,173.57,173.54,34.5794]
[1748423884411,0.03889593,173.57,173.55,5.7591]
[1748423884908,0.03889593,173.57,173.54,28.82]
[1748423885502,0.03889593,173.57,173.55,5.7588]
[1748423885805,0.03889593,173.57,173.54,28.82]
[1748423886409,0.03889593,173.57,173.54,30.7036]
[1748423886803,0.03889593,173.57,173.56,5.7588]
[1748423887204,5.7566,173.63,173.54,30.7036]
[1748423887405,5.7566,173.63,173.59,5.7577]
[1748423887803,5.7566,173.63,173.6,5.7573]
[1748423888010,5.7562,173.64,173.6,5.7573]
[1748423888209,3.8586,173.66,173.6,5.7573]
[1748423888405,0.04241008,173.64,173.6,5.79444346]
[1748423888603,0.04241008,173.64,173.6,0.03714346]
[1748423889109,0.04241008,173.64,173.63,5.7565]
[1748423889315,1.8835,173.71,173.63,28.8]
[1748423889507,30.7327,173.74,173.63,28.8]
[1748423889712,30.7327,173.74,173.64,5.756]
[1748423890317,0.03786154,173.71,173.67,0.04020756]
[1748423890516,5.755,173.68,173.67,0.04020756]
[1748423894414,5.7561,173.64,173.63,28.8]
[1748423896626,0.04387791,173.65,173.63,28.8]
[1748423899020,5.79967791,173.65,173.63,28.8]
[1748423903025,5.7561,173.64,173.63,28.8]
[1748423905127,5.79977791,173.65,173.63,28.8]
[1748423905924,0.04387791,173.65,173.63,28.8]
[1748423907022,0.04387791,173.65,173.64,5.7561]
[1748423907219,30.7303,173.73,173.63,28.8]
[1748423907725,5.7544,173.7,173.66,5.7553]
[1748423908424,5.79328792,173.7,173.66,5.79353552]
[1748423908624,5.79328792,173.7,173.67,34.5151]
[1748423910325,5.79328792,173.7,173.67,28.76]
[1748423911223,5.79328792,173.7,173.67,34.515]
[1748423912427,5.7546,173.69,173.67,28.76]
[1748423912627,0.03888792,173.7,173.67,28.76]
[1748423913629,5.7548,173.68,173.67,28.76]
[1748423914028,0.03888792,173.7,173.66,0.03823552]
[1748423914530,5.7551,173.67,173.66,0.03823552]
[1748423923637,5.7546,173.69,173.66,0.03823552]